Cogmind - Beta 13 X1 @@@ ROGUE MODE // 2023.07.31 @ 13:17:11 Player: Schmee Result: Destroyed by G-50 Soldier with Heavy Laser Performance ------------- Evolutions (5) 2500 Regions Visited (10) 2000 Robots Destroyed (167) 835 Value Destroyed (6416) 6416 Prototype IDs (15) 300 Alien Tech Used (0) 0 Bonus (2833) 2833 TOTAL SCORE: 14884 Bonus ------- High Alert Combat Kills 470 Follower Combat Kills 1749 Met Zhirov 300 Met R17 at Cetus 500 Friendly Fire -186 Cogmind --------- Core Integrity 0/1000 Matter 300/300 Energy 100/100 System Corruption 13% Temperature Cool (36) Movement Core (50) Location -5/Factory Parts ------- > --- POWER (2) -------- (None) > --- PROPULSION (4) --- (None) > --- UTILITY (7) ------ (None) > --- WEAPON (4) ------- (None) > --- INVENTORY (5) ---- Carbon-fiber Leg Faulty Gravity Neutralizer Advanced Terrain Scanner Focal Shield Advanced System Restoration Module Peak State ------------ > --- POWER ------------ Micro Fission Core Micro Antimatter Reactor > --- PROPULSION ------- Carbon-fiber Leg Flexi-carbon Leg Armored Leg Enhanced Flexi-carbon Leg > --- UTILITY ---------- Advanced Heat Sink Experimental Heat Sink Advanced Sensor Array Improved Signal Interpreter Improved Target Analyzer Improved Focal Shield Experimental Thermal Shield > --- WEAPON ----------- Advanced KE Penetrator Heavy Flak Cannon Tiamat Missile Launcher Heavy Pick > --- INVENTORY -------- Biomechanical Wings Proton Cannon Heavy Phase Cannon KE Penetrator Advanced KE Penetrator [Rating: 102] Favorites ----------- Power Improved Ion Engine Engine Improved Ion Engine Power Core Micro Nuclear Core Reactor Antimatter Reactor Propulsion Flexi-carbon Leg Treads Light Treads Leg Flexi-carbon Leg Utility Advanced Heat Sink Device Advanced Heat Sink Storage Large Storage Unit Processor Improved Signal Interpreter Protection Centrium Medium Armor Plating Weapon High-powered Field Laser Energy Gun High-powered Field Laser Energy Cannon Advanced Beam Cannon Ballistic Gun Advanced KE Penetrator Ballistic Cannon Heavy Flak Cannon Launcher Tiamat Missile Launcher Impact Weapon Impact Mace Slashing Weapon Axe Piercing Weapon Heavy Pick Special Melee Weapon Improved Datajack Build | -11 -10 -9 -8 -7 -6 -6 -6 -6 -6 -5 ------- Run | Jun Mat Mat Mat Fac Fac Ext Cet Arc Hub Fac Slots Evolved 10 | . . 2 2 2 2 . . . . 2 Power 1 | . . . . . 1 . . . . . Propulsion 2 | . . . 1 1 . . . . . . Utility 5 | . . 2 1 . 1 . . . . 1 Weapon 2 | . . . . 1 . . . . . 1 Parts Attached 221 | . 4 16 34 13 17 39 18 3 14 63 Power 24 | . 1 2 2 1 4 4 1 . 1 8 Engine 12 | . 1 2 1 . 1 3 . . 1 3 Core 9 | . . . 1 1 3 1 . . . 3 Reactor 3 | . . . . . . . 1 . . 2 Propulsion 53 | . 2 5 9 6 3 7 5 1 4 11 Treads 12 | . 2 5 5 . . . . . . . Leg 41 | . . . 4 6 3 7 5 1 4 11 Wheel . | . . . . . . . . . . . Hover . | . . . . . . . . . . . Flight . | . . . . . . . . . . . Utility 58 | . 1 5 10 1 1 6 7 2 2 23 Device 38 | . . . 7 1 1 5 3 1 2 18 Storage 2 | . 1 . . . . . . . . 1 Processor 7 | . . 1 2 . . . . . . 4 Hackware . | . . . . . . . . . . . Protection 11 | . . 4 1 . . 1 4 1 . . Artifact . | . . . . . . . . . . . Weapon 86 | . . 4 13 5 9 22 5 . 7 21 Energy Gun 36 | . . 1 6 3 6 11 2 . 2 5 Energy Cannon 8 | . . . 2 . . 3 . . . 3 Ballistic Gun 10 | . . 2 1 . . 1 1 . 3 2 Ballistic Cannon 6 | . . 1 . . . 1 . . . 4 Launcher 6 | . . . 1 . . 1 2 . . 2 Special Weapon . | . . . . . . . . . . . Impact Weapon 13 | . . . 3 2 3 5 . . . . Slashing Weapon 2 | . . . . . . . . . . 2 Piercing Weapon 4 | . . . . . . . . . 2 2 Special Melee Weapon 1 | . . . . . . . . . . 1 Unidentified Prototypes 12 | . . . 2 . . 1 3 . 3 3 Corrupted Parts 1 | . . . . . . . . . 1 . System Corruption 11 | . . . . . . . . . 11 . Parts Lost 73 | . . . 7 1 . 13 3 4 4 41 Power 11 | . . . 2 . . 2 . . 1 6 Propulsion 24 | . . . 4 . . 1 2 1 3 13 Utility 20 | . . . 1 . . 6 1 2 . 10 Weapon 18 | . . . . 1 . 4 . 1 . 12 Highest Loss Streak 10 | . . . 6 1 . 9 2 4 2 10 To Critical Strikes 2 | . . . . . . . 2 . . . Average Slot Usage (%) 93 | . 95 95 93 94 98 94 95 95 96 90 Engine 5 | . 14 11 5 . 5 7 11 6 3 1 Core 2 | . . . 2 7 6 4 . . . 3 Reactor 1 | . . . . . . . 1 6 6 4 Treads 5 | . 17 22 16 . . . . . . . Leg 17 | . 10 . 7 25 25 25 23 26 25 19 Device 16 | . . . 17 15 18 15 13 17 21 24 Storage 6 | . 23 16 9 7 6 6 6 2 . 2 Processor 9 | . . 5 11 15 13 10 6 6 6 9 Protection 5 | . . 17 4 . . 2 11 13 10 1 Energy Gun 10 | . 14 1 10 22 17 15 19 15 13 4 Ballistic Gun 4 | . 14 12 1 . . . . . 4 5 Ballistic Cannon 2 | . . 7 1 . . 1 . . . 3 Naked Turns 2 | . . . . . . . . . . 2 Heaviest Build 78 | 14 34 47 48 41 55 78 77 73 58 70 Greatest Support 87 | 20 40 43 65 77 73 77 83 83 83 87 Greatest Overweight (x) 9 | . 1 1 9 . . 1 1 . 1 9 Average Overweight (x) . | . . . . . . . . . . . Largest Inventory Capacity 15 | 8 15 15 15 15 15 15 15 15 5 15 Average Capacity 12 | 8 12 15 15 15 15 15 15 9 5 10 Most Carried 15 | 6 11 15 15 15 15 15 15 15 5 15 Average Carried 12 | 6 7 14 14 14 14 14 14 9 4 9 Final Capacity 15 | 8 15 15 15 15 15 15 15 5 5 5 Final Carried 15 | 6 11 15 15 15 15 15 15 5 5 5 Class Distribution -------------------- 34% | Scavenger-Mutant 23% | Scavenger-Tank 17% | Mutant 8% | Scavenger-Skirmisher 7% | Skirmisher 6% | Scavenger-Gunner Dominant Class ---------------- Mutant | -10/Materials Mutant | -9/Materials Scavenger-Mutant | -8/Materials Skirmisher | -7/Factory Skirmisher | -6/Factory Scavenger-Skirmisher | -6/Extension Scavenger-Tank | -6/Cetus Scavenger-Mutant | -6/Archives Scavenger-Tank | -6/Hub_04(d) Scavenger-Tank | -5/Factory Resources | -11 -10 -9 -8 -7 -6 -6 -6 -6 -6 -5 ----------- Run | Jun Mat Mat Mat Fac Fac Ext Cet Arc Hub Fac Matter Collected 4612 | 200 82 596 441 113 266 434 328 . 413 1739 Remotely . | . . . . . . . . . . . Salvage Created 7347 | . 196 825 1342 165 266 746 190 51 820 2746 Parts 366 | . 26 38 62 11 5 36 13 2 29 144 Haulers Intercepted 6 | . . 1 3 . 1 . . . . 1 Recyclers Shooed 10 | . . 2 1 . . 2 . . 1 4 Parts Field Recycled . | . . . . . . . . . . . Retrieved Matter . | . . . . . . . . . . . Parts Self-Destructed . | . . . . . . . . . . . Prevented . | . . . . . . . . . . . Kills | -11 -10 -9 -8 -7 -6 -6 -6 -6 -6 -5 ------- Run | Jun Mat Mat Mat Fac Fac Ext Cet Arc Hub Fac Combat Hostiles Destroyed 117 | . 7 13 23 2 3 12 5 1 14 37 Melee 1 | . . . 1 . . . . . . . Guns 78 | . 7 8 12 2 2 7 4 1 14 21 Cannons 29 | . . 5 7 . . 1 . . . 16 AOE 3 | . . . 2 . . 1 . . . . Classes Destroyed 15 | . 4 5 2 2 . . . . . 2 Worker 10 | . . 1 1 1 . . . . . 7 Builder 11 | . 1 2 2 . . . . . . 6 Tunneler 1 | . . . . 1 . . . . . . Hauler 6 | . . 1 3 . 1 . . . . 1 Recycler 7 | . . 3 . . . . . . . 4 Operator 2 | . . . 1 . . . . . . 1 Watcher 13 | . 1 1 4 1 . 3 . . 1 2 Swarmer 17 | . 5 . 3 . . 3 4 . . 2 Grunt 51 | . 2 9 16 . . . . 1 9 14 Brawler 2 | . . 1 1 . . . . . . . Duelist 3 | . . . . . . . . . . 3 Sentry 18 | . . 3 2 . 2 6 . . 3 2 Specialist 2 | . . . . . . . . . . 2 Hunter 7 | . . . 1 . . 2 . . . 4 Programmer 16 | . . . . 2 1 1 . . 2 10 Cetus Guard 1 | . . . . . . . 1 . . . Best Kill Streak 8 | . 6 8 3 1 1 3 2 1 5 7 Combat Bots Only 6 | . 5 3 3 1 1 3 2 1 5 6 Max Kills in Single Turn 2 | . 1 2 2 1 1 1 2 1 1 2 Gunslinging 1 | . . . . . . . 1 . . . Exploded 1 | . . . 1 . . 1 . . . . Melee 1 | . . . 1 . . . . . . . Uniques/NPCs Destroyed . | . . . . . . . . . . . Combat | -11 -10 -9 -8 -7 -6 -6 -6 -6 -6 -5 -------- Run | Jun Mat Mat Mat Fac Fac Ext Cet Arc Hub Fac Damage Taken 14312 | . 249 561 1906 544 252 1917 1013 1187 1163 5520 Core 1987 | . 47 28 295 118 21 310 89 5 70 1004 Absorbed by Shields 949 | . . . . . . 45 226 . . 678 Ignored by Resistances 953 | . . . . . . . . . 382 571 Regen/Repaired (Parts) 128 | . . . 19 . 109 . . . . . Core Remaining (%) 74 | 100 81 93 46 83 . . . . 41 . Volleys Fired 413 | . 14 60 74 10 13 35 19 3 48 137 Largest 4 | . 2 2 2 3 3 3 3 3 3 4 Hottest 285 | . 70 79 140 210 215 233 255 239 184 285 Shots Fired 1034 | . 28 120 144 28 39 81 48 9 145 392 Gun 789 | . 28 80 93 28 39 72 46 9 145 249 Cannon 240 | . . 40 48 . . 9 . . . 143 Launcher 5 | . . . 3 . . . 2 . . . Special . | . . . . . . . . . . . Kinetic 424 | . 14 111 24 . . 2 . . 48 225 Thermal 600 | . 14 9 117 28 39 75 46 9 97 166 Explosive 5 | . . . 3 . . . 2 . . . Electromagnetic 5 | . . . . . . 4 . . . 1 Robot Hit Streak 18 | . 9 15 13 7 18 14 11 2 16 12 Robot Miss Streak 18 | . 2 3 5 2 2 3 2 2 4 18 Penetration Max 1 | . . . . . . . . . 1 1 Secondary Targets 7 | . 3 . 1 . . . 2 . 1 . Max Gunslinging Chain 1 | . 1 . 1 . . . 1 . 1 . Shots Hit Robots 667 | . 17 81 104 7 31 59 37 5 87 239 Core Hits 307 | . 11 34 49 5 7 21 22 4 34 120 Critical Kills 6 | . . . . . . . . . 2 4 Critical Parts Destroyed 14 | . . . 1 . . 2 . . 4 7 Critical Strikes 44 | . 3 1 2 1 1 9 5 . 8 14 Burn 23 | . 3 1 1 1 1 7 5 . 2 2 Destroy 17 | . . . . . . . . . 6 11 Blast 1 | . . . . . . . . . . 1 Smash 3 | . . . 1 . . 2 . . . . Melee Attacks 76 | . . . 17 3 11 10 . . 14 21 Impact 41 | . . . 17 3 11 10 . . . . Slashing 4 | . . . . . . . . . . 4 Piercing 31 | . . . . . . . . . 14 17 Sneak Attacks 8 | . . . 2 . . . . . . 6 Combat Hostiles . | . . . . . . . . . . . Follow-up Attacks 3 | . . . 2 . . 1 . . . . Damage Inflicted 18039 | . 235 1414 2885 208 748 1443 1059 91 2368 7588 Guns 11589 | . 235 821 1234 208 748 1050 739 91 2339 4124 Cannons 4018 | . . 564 677 . . 147 . . . 2630 Explosions 908 | . . . 132 . . 68 320 . . 388 Melee 1437 | . . . 842 . . 169 . . . 426 Ramming 87 | . . 29 . . . 9 . . 29 20 Kinetic 6341 | . 94 1298 147 . . 53 . . 730 4019 Thermal 9247 | . 141 87 1764 208 748 1148 739 91 1609 2712 Explosive 840 | . . . 132 . . . 320 . . 388 Electromagnetic 87 | . . . . . . 64 . . . 23 Impact 1011 | . . . 842 . . 169 . . . . Slashing . | . . . . . . . . . . . Piercing 426 | . . . . . . . . . . 426 Highest Corruption 19 | . 2 . . 2 . 1 1 1 11 19 Average Corruption 7 | . 2 . . 1 . 1 1 1 8 12 Corruption Purged 15 | . . . . . . . . 1 4 10 Corruption Blocked . | . . . . . . . . . . . Effects 176 | . 3 . . 4 . 6 7 1 41 114 Message Errors 33 | . . . . 1 . 2 1 . 6 23 Matter Fused 36 | . . . . 2 . 2 . . 11 21 Heat Flow Errors 31 | . 1 . . . . 2 3 . 10 15 Energy Discharges 20 | . 2 . . . . . . 1 2 15 Parts Rejected 2 | . . . . . . . . . . 2 Parts Fused 4 | . . . . . . . . . 2 2 Data Loss (minor) 24 | . . . . 1 . . 2 . 5 16 Data Loss (major) 7 | . . . . . . . . . 1 6 Misfires 4 | . . . . . . . . . 2 2 Alerts 5 | . . . . . . . 1 . 1 3 Misdirections 2 | . . . . . . . . . . 2 Weapon Failures 8 | . . . . . . . . . 1 7 Overload Shots . | . . . . . . . . . . . Overflow Damage 707 | . . 6 342 . . 99 . . . 260 Projectiles 115 | . . 6 . . . . . . . 109 Explosions 120 | . . . . . . 26 . . . 94 Melee 472 | . . . 342 . . 73 . . . 57 Knockbacks 39 | . . 4 2 . . . . . 1 32 Impact 3 | . . . 2 . . . . . 1 . Kinetic 36 | . . 4 . . . . . . . 32 Secondary . | . . . . . . . . . . . Self-Inflicted Damage 211 | . . . 69 . . 52 . . . 90 Shots 4 | . . . 2 . . 1 . . . 1 Rammed 3 | . . 3 . . . . . . . . Targets Rammed 10 | . . 3 . . . 1 . . 4 2 Kicked 7 | . . . . . . 1 . . 4 2 Crushed . | . . . . . . . . . . . Highest Temperature 736 | . 245 246 483 198 90 459 736 98 294 714 Average Temperature 101 | . 63 70 123 78 20 78 240 54 78 104 Received Heat Transfer 3689 | . 18 246 846 108 54 286 65 96 621 1349 Effects 39 | . . 2 5 . . 1 20 . . 11 Shutdowns 9 | . . . 1 . . 1 5 . . 2 Energy Bleed 5 | . . . . . . . 3 . . 2 Interference 12 | . . 2 3 . . . 4 . . 3 Matter Decay 4 | . . . . . . . 3 . . 1 Short Circuit 3 | . . . 1 . . . 1 . . 1 Damage (minor) 2 | . . . . . . . 2 . . . Damage (major) 4 | . . . . . . . 2 . . 2 Siege Activations . | . . . . . . . . . . . Robots Corrupted . | . . . . . . . . . . . Combat Hostiles . | . . . . . . . . . . . Parts Fried 4 | . . . 3 . . 1 . . . . Impact Corruptions 12 | . . . 10 . . 2 . . . . Robots Melted 4 | . . . . . 1 2 1 . . . Combat Hostiles 4 | . . . . . 1 2 1 . . . Parts Melted 35 | . . 1 8 3 4 12 2 . 2 3 Heat Transferred 17182 | . 629 296 3145 370 1338 2912 2372 237 2516 3367 Parts Sabotaged . | . . . . . . . . . . . Parts Stolen . | . . . . . . . . . . . Parts Stripped . | . . . . . . . . . . . Power Chain Reactions 1 | . . . . . . 1 . . . . Missiles Intercepted . | . . . . . . . . . . . Alert | -11 -10 -9 -8 -7 -6 -6 -6 -6 -6 -5 ------- Run | Jun Mat Mat Mat Fac Fac Ext Cet Arc Hub Fac Peak Influence 843 | . 177 243 357 201 139 438 684 406 414 843 Initial 253 | . . 74 32 142 30 14 253 246 121 165 Average 216 | . 47 122 211 102 32 117 407 333 264 354 Maximum Alert Level 3 | . . 1 1 1 . 2 2 2 2 3 Low Security (%) 58 | 100 100 95 44 92 100 83 . . 15 42 Level 1 26 | . . 4 55 7 . 9 50 87 81 15 Level 2 10 | . . . . . . 6 48 12 2 26 Level 3 3 | . . . . . . . . . . 15 Level 4 . | . . . . . . . . . . . Level 5 . | . . . . . . . . . . . High Security . | . . . . . . . . . . . Max Security . | . . . . . . . . . . . Squads Dispatched 40 | . . 1 2 2 3 6 . . 10 16 Investigation 5 | . . . . . . 4 . . 1 . Extermination 9 | . . . . 2 2 . . . 1 4 Reinforcement 14 | . . 1 2 . 1 1 . . 2 7 Assault 6 | . . . . . . 1 . . . 5 Garrison 6 | . . . . . . . . . 6 . Intercept . | . . . . . . . . . . . Searches Triggered . | . . . . . . . . . . . Construction Impeded 4 | . . . . . . . . . 1 3 Haulers Reinforced . | . . . . . . . . . . . Active Scanning Responses . | . . . . . . . . . . . Cargo Convoy Interrupts 1 | . . . . . . . . . . 1 Stealth | -11 -10 -9 -8 -7 -6 -6 -6 -6 -6 -5 --------- Run | Jun Mat Mat Mat Fac Fac Ext Cet Arc Hub Fac Distress Signals 13 | . 1 1 4 1 . 2 2 . 1 1 Communications Jammed . | . . . . . . . . . . . Distress Signals . | . . . . . . . . . . . Times Spotted 265 | . 10 18 44 7 4 33 21 25 25 78 Peak Tracking Total 16 | . 7 5 4 2 2 5 5 16 6 9 Tactical Retreats 11 | . . 1 . . . 4 . . 2 4 Traps | -11 -10 -9 -8 -7 -6 -6 -6 -6 -6 -5 ------- Run | Jun Mat Mat Mat Fac Fac Ext Cet Arc Hub Fac Traps Triggered 2 | . 1 . . . . . . . 1 . Indirectly . | . . . . . . . . . . . Trap Hack Attempts . | . . . . . . . . . . . Triggered . | . . . . . . . . . . . Disarmed . | . . . . . . . . . . . Reprogrammed . | . . . . . . . . . . . Reused . | . . . . . . . . . . . Traps Extracted . | . . . . . . . . . . . Installed . | . . . . . . . . . . . Triggered 1 | . . . . . . . . . . 1 Machines | -11 -10 -9 -8 -7 -6 -6 -6 -6 -6 -5 ---------- Run | Jun Mat Mat Mat Fac Fac Ext Cet Arc Hub Fac Machines Disabled 27 | . . . 5 . . 2 4 1 4 11 Max in Single Turn 2 | . . . 1 . . 1 1 1 1 2 Garrison Access 1 | . . . . . . . . . . 1 Machines Repaired . | . . . . . . . . . . . Machines Sabotaged . | . . . . . . . . . . . Overloaded Fab Kills . | . . . . . . . . . . . Hacking | -11 -10 -9 -8 -7 -6 -6 -6 -6 -6 -5 --------- Run | Jun Mat Mat Mat Fac Fac Ext Cet Arc Hub Fac Machines Accessed 36 | . 1 5 5 2 6 10 1 . 2 4 Terminals 27 | . 1 4 3 1 4 9 1 . 2 2 Fabricators . | . . . . . . . . . . . Repair Stations 4 | . . . 1 1 1 . . . . 1 Recycling Units 4 | . . 1 . . 1 1 . . . 1 Scanalyzers 1 | . . . 1 . . . . . . . Garrison Access . | . . . . . . . . . . . Total Hacks 68 | . 2 9 14 2 9 20 2 . 3 7 Successful 33 | . 2 6 8 . 4 8 . . 3 2 Failed 35 | . . 3 6 2 5 12 2 . . 5 Catastrophic 2 | . . . . . . 1 1 . . . Database Lockouts . | . . . . . . . . . . . Manual 5 | . . . . . . . 2 1 . 2 Terminals 52 | . 2 7 10 1 6 18 2 . 3 3 Fabricators . | . . . . . . . . . . . Repair Stations 6 | . . . 2 1 2 . . . . 1 Recycling Units 8 | . . 2 . . 1 2 . . . 3 Scanalyzers 2 | . . . 2 . . . . . . . Garrison Access . | . . . . . . . . . . . Terminal Hacks 23 | . 2 4 4 . 2 7 . . 3 1 Record 6 | . 1 1 2 . . . . . 2 . Robot Analysis 1 | . . . 1 . . . . . . . Prototype ID Bank 1 | . . 1 . . . . . . . . Open Door 8 | . . . . . 1 7 . . . . Alert Level 3 | . . . 1 . 1 . . . . 1 Locate Traps 1 | . . 1 . . . . . . . . Zone Layout 3 | . 1 1 . . . . . . 1 . Fabricator Hacks . | . . . . . . . . . . . Repair Station Hacks 4 | . . . 2 . 2 . . . . . Scan Component 2 | . . . 1 . 1 . . . . . Repair 2 | . . . 1 . 1 . . . . . Recycling Unit Hacks 4 | . . 2 . . . 1 . . . 1 Report Inventory 2 | . . 1 . . . 1 . . . . Retrieve Matter 2 | . . 1 . . . . . . . 1 Scanalyzer 2 | . . . 2 . . . . . . . Insert Component 1 | . . . 1 . . . . . . . Analyze 1 | . . . 1 . . . . . . . Garrison Access Hacks . | . . . . . . . . . . . Unauthorized Hacks . | . . . . . . . . . . . Terminals . | . . . . . . . . . . . Fabricators . | . . . . . . . . . . . Repair Stations . | . . . . . . . . . . . Recycling Units . | . . . . . . . . . . . Scanalyzers . | . . . . . . . . . . . Garrison Access . | . . . . . . . . . . . Data Cores Recovered . | . . . . . . . . . . . Used . | . . . . . . . . . . . Hacking Detections 22 | . . 1 2 1 5 7 1 . 1 4 Full Trace Events 3 | . . . . . . 3 . . . . Feedback Events . | . . . . . . . . . . . Feedback Blocked . | . . . . . . . . . . . Robot Schematics Acquired . | . . . . . . . . . . . Robots Built . | . . . . . . . . . . . Authchips . | . . . . . . . . . . . Time . | . . . . . . . . . . . Total Robot Build Rating . | . . . . . . . . . . . Part Schematics Acquired 1 | . . . 1 . . . . . . . Parts Built . | . . . . . . . . . . . Authchips . | . . . . . . . . . . . Time . | . . . . . . . . . . . Total Part Build Rating . | . . . . . . . . . . . Parts Repaired 2 | . . . 1 . 1 . . . . . Time 108 | . . . 38 . 70 . . . . . Parts Recycled . | . . . . . . . . . . . Recycled Matter . | . . . . . . . . . . . Retrieved Matter . | . . . . . . . . . . . Retrieved Components . | . . . . . . . . . . . Parts Scanalyzed 1 | . . . 1 . . . . . . . Part Schematics Acquired 1 | . . . 1 . . . . . . . Parts Damaged . | . . . . . . . . . . . Bothacking | -11 -10 -9 -8 -7 -6 -6 -6 -6 -6 -5 ------------ Run | Jun Mat Mat Mat Fac Fac Ext Cet Arc Hub Fac Used RIF Installer . | . . . . . . . . . . . Robots Hacked . | . . . . . . . . . . . Non-combat . | . . . . . . . . . . . Combat . | . . . . . . . . . . . Robot Hacks Applied . | . . . . . . . . . . . Relay Couplers Released 4 | . . . . . . . . . . 4 Programmers 4 | . . . . . . . . . . 4 Fabnet Peak Effective % . | . . . . . . . . . . . Robots Rewired 9 | . . . . 1 . 8 . . . . Allies Hacked . | . . . . . . . . . . . Hacks Repelled . | . . . . . . . . . . . Allies | -11 -10 -9 -8 -7 -6 -6 -6 -6 -6 -5 -------- Run | Jun Mat Mat Mat Fac Fac Ext Cet Arc Hub Fac Total Allies 20 | . . . . 1 . 17 2 . . . Largest Group 8 | . . . . 1 1 8 6 3 . . Highest-Rated Group 375 | . . . . 30 20 375 363 267 . . Highest-Rated Ally 159 | . . . . 30 20 159 159 143 . . Total Orders 1 | . . . . . 1 . . . . . ROAM 1 | . . . . . 1 . . . . . Ally Attacks 193 | . . . . 2 . 90 76 25 . . Total Damage 5687 | . . . . 77 . 2263 2272 1075 . . Kills 40 | . . . . 1 . 18 16 5 . . Allies Corrupted . | . . . . . . . . . . . Allies Melted . | . . . . . . . . . . . Intel | -11 -10 -9 -8 -7 -6 -6 -6 -6 -6 -5 ------- Run | Jun Mat Mat Mat Fac Fac Ext Cet Arc Hub Fac Robot Analysis Total 1 | . . . 1 . . . . . . . Derelict Logs Recovered . | . . . . . . . . . . . Drone Launches . | . . . . . . . . . . . Drone Recoveries . | . . . . . . . . . . . Exploration | -11 -10 -9 -8 -7 -6 -6 -6 -6 -6 -5 ------------- Run | Jun Mat Mat Mat Fac Fac Ext Cet Arc Hub Fac Turns Passed 11514 | 3 254 1486 1858 691 750 1750 498 246 1066 2912 Spaces Moved 6369 | 3 143 578 952 472 471 996 267 190 673 1624 Core 7 | . . . 2 . . . . . . 5 Treads 1219 | . 71 578 570 . . . . . . . Legs 5143 | 3 72 . 380 472 471 996 267 190 673 1619 Wheels . | . . . . . . . . . . . Hover . | . . . . . . . . . . . Flight . | . . . . . . . . . . . Fastest Speed 50 | 120 120 160 120 122 125 120 120 120 120 50 Average Speed 140 | 120 140 210 152 124 125 136 149 121 120 129 Slowest Speed 500 | 120 190 240 500 130 127 190 190 122 190 500 Overloaded Moves . | . . . . . . . . . . . Propulsion Burnouts . | . . . . . . . . . . . Robots Hopped . | . . . . . . . . . . . Cave-ins Triggered 1 | . . . . . . . . . . 1 Exploration Rate (%) 42 | 2 23 39 48 11 10 84 69 93 43 46 Regions Visited 10 Branch Regions 4 Pre-discovered Areas . | . . . . . . . . . . . Known Exits Taken 8 | . . 1 1 1 1 1 1 1 1 . Unknown Exits Taken 2 | 1 1 . . . . . . . . . Scrap Searched . | . . . . . . . . . . . Spaces Dug 42 | . . . 1 2 11 5 . . 10 13 Terrain Destroyed 218 | . . 2 29 2 11 17 20 . 33 104 Melee 42 | . . . 1 2 11 5 . . 10 13 Projectile 74 | . . 2 4 . . 4 . . 23 41 AOE 102 | . . . 24 . . 8 20 . . 50 Terrain Rammed . | . . . . . . . . . . . Walls Destroyed . | . . . . . . . . . . . Machines Disabled . | . . . . . . . . . . . Actions | -11 -10 -9 -8 -7 -6 -6 -6 -6 -6 -5 --------- Run | Jun Mat Mat Mat Fac Fac Ext Cet Arc Hub Fac Total 7955 | 2 166 744 1198 551 580 1298 326 197 788 2105 Wait 562 | . . 57 83 28 60 113 3 . 28 190 Move 6359 | 2 142 577 951 471 470 995 266 189 672 1624 Hop . | . . . . . . . . . . . Pick Up 94 | . 5 11 17 7 1 6 7 . 4 36 Fast Attach 75 | . 1 5 13 . 4 11 6 3 4 28 Attach 35 | . . . 4 4 2 5 2 . 3 15 Detach 14 | . . . 1 2 1 2 1 . . 7 Swap 111 | . 3 11 17 9 11 23 10 . 7 20 Drop 118 | . 1 20 24 11 7 14 12 . 4 25 Fire 413 | . 14 60 74 10 13 35 19 3 48 137 Melee 72 | . . . 14 3 11 9 . . 14 21 Ram . | . . . . . . . . . . . Kick 7 | . . . . . . 1 . . 4 2 Crush 3 | . . 3 . . . . . . . . Escape Stasis . | . . . . . . . . . . . Rewire 92 | . . . . 6 . 84 . 2 . . Trap . | . . . . . . . . . . . Miscellaneous . | . . . . . . . . . . . Route ------- -11/Junkyard -10/Materials (discovered 2 exits: *Mat / [Sub]) -9/Materials (discovered 2 exits: *Mat / [*Sto]) -8/Materials -7/Factory -6/Factory -6/Extension (discovered 2 exits: *Fac / *Cet) -6/Cetus (discovered 2 exits: *Fac / *Arc) -6/Archives (discovered 3 exits: *Fac / *Hub x2) -6/Hub_04(d) -5/Factory (discovered 1 exit: *Fac) History --------- Turn | Location | Event 1 | -11/Junkyard | Discovered new exit (range 2) 4 | -11/Junkyard | Entered Materials 116 | -10/Materials | Discovered new exit (range 13) 187 | -10/Materials | Discovered new exit (range 10) 258 | -10/Materials | Entered another Materials area 258 | -9/Materials | Evolved 2 slots: Utility x2 303 | -9/Materials | Build established: Mutant 441 | -9/Materials | Discovered new exit (range 12) 1328 | -9/Materials | Build established: Scavenger-Mutant 1655 | -9/Materials | Discovered new exit (range 15) 1739 | -9/Materials | Identified exit to Materials 1744 | -9/Materials | Entered another Materials area 1744 | -8/Materials | Evolved 2 slots: Propulsion x1, Utility x1 2860 | -8/Materials | Discovered new exit (range 11) 2975 | -8/Materials | Core integrity fell below 50% 2999 | -8/Materials | Lost 6 parts (2p3n1u) 3409 | -8/Materials | Repaired Imp. Sensor Array 3601 | -8/Materials | Identified exit to Factory 3602 | -8/Materials | Entered Factory 3602 | -7/Factory | Evolved 2 slots: Propulsion x1, Weapon x1 4175 | -7/Factory | Build established: Skirmisher 4221 | -7/Factory | Discovered new exit (range 12) 4292 | -7/Factory | Identified exit to Factory 4293 | -7/Factory | Entered another Factory area 4293 | -6/Factory | Accompanied by 1 ally 4293 | -6/Factory | Evolved 2 slots: Power x1, Utility x1 4832 | -6/Factory | Repaired Hpw. Field Laser 5038 | -6/Factory | Discovered new exit (range 6) 5042 | -6/Factory | Identified exit to Extension 5043 | -6/Factory | Entered Extension 5053 | -6/Extension | Build established: Mutant 5689 | -6/Extension | Build established: Scavenger-Skirmisher 5843 | -6/Extension | Rescued a captive Derelict 5843 | -6/Extension | Rescued a captive Derelict 6076 | -6/Extension | Rescued a captive Derelict 6077 | -6/Extension | Rescued a captive Derelict 6084 | -6/Extension | Spotted B-75 Beast 6093 | -6/Extension | Spotted B-75 Beast 6163 | -6/Extension | Rescued a captive Derelict 6174 | -6/Extension | Lost 9 parts (1p1n4u3w) 6206 | -6/Extension | Rescued A7 6361 | -6/Extension | Rescued a captive Derelict 6536 | -6/Extension | Rescued a captive Derelict 6561 | -6/Extension | Rescued a captive Derelict 6767 | -6/Extension | Discovered new exit (range 10) 6768 | -6/Extension | Discovered new exit (range 6) 6782 | -6/Extension | Identified exit to Factory 6790 | -6/Extension | Identified exit to Cetus 6793 | -6/Extension | First assault squad dispatched 6793 | -6/Extension | Entered Cetus 6793 | -6/Cetus | Accompanied by 6 allies (A7) 6798 | -6/Cetus | Acquired a Cetus Manufacturing Module code from A7 6810 | -6/Cetus | Spotted Cetus Guard 6810 | -6/Cetus | Spotted Cetus Guard 6815 | -6/Cetus | Spotted Cetus Guard 6826 | -6/Cetus | Allies destroyed Cetus Guard 6829 | -6/Cetus | Allies destroyed Cetus Guard 6833 | -6/Cetus | Spotted Cetus Guard 6838 | -6/Cetus | Allies destroyed Cetus Guard 6845 | -6/Cetus | Allies destroyed Cetus Guard 6974 | -6/Cetus | Started Cetus Manufacturing Module 6999 | -6/Cetus | Manufactured an Enhanced Grunt 7024 | -6/Cetus | Manufactured an Enhanced Grunt 7048 | -6/Cetus | Cetus Manufacturing Module disabled 7106 | -6/Cetus | Discovered new exit (range 15) 7126 | -6/Cetus | Identified exit to Archives 7153 | -6/Cetus | Spotted Cetus Guard 7154 | -6/Cetus | Spotted Cetus Guard 7166 | -6/Cetus | Build established: Scavenger-Tank 7168 | -6/Cetus | Spotted Cetus Guard 7173 | -6/Cetus | Spotted Cetus Guard 7173 | -6/Cetus | Allies destroyed Cetus Guard 7175 | -6/Cetus | Destroyed Cetus Guard 7178 | -6/Cetus | Allies destroyed Cetus Guard 7184 | -6/Cetus | Allies destroyed Cetus Guard 7203 | -6/Cetus | Discovered exit to Factory (range 16) 7210 | -6/Cetus | Met Revision 17 7245 | -6/Cetus | Found Prototype Device 7291 | -6/Cetus | Entered Archives 7291 | -6/Archives | Accompanied by 3 allies (A7) 7319 | -6/Archives | Met Zhirov 7325 | -6/Archives | Reinforcements dispatched to Archives 7367 | -6/Archives | Unable to access archive contents 7368 | -6/Archives | Discovered exit to Factory (range 16) 7370 | -6/Archives | Reinforcements dispatched to Archives 7372 | -6/Archives | Zhirov warped through subspace 7379 | -6/Archives | Discovered new exit (range 13) 7390 | -6/Archives | Zhirov detonated Archives 7409 | -6/Archives | Identified exit to Hub_04(d) 7421 | -6/Archives | Lost 4 parts (1n2u1w) 7508 | -6/Archives | Discovered exit to Hub_04(d) (range 14) 7537 | -6/Archives | Entered Hub_04(d) 7557 | -6/Hub_04(d) | System corruption reached 10% 7615 | -6/Hub_04(d) | Identified Exp. Thermal Shield 7660 | -6/Hub_04(d) | Garrison activated, responded to threat 7687 | -6/Hub_04(d) | Core integrity fell below 50% 8260 | -6/Hub_04(d) | Garrison activated, responded to threat 8590 | -6/Hub_04(d) | Discovered exit to Factory (range 8) 8603 | -6/Hub_04(d) | Entered Factory 8603 | -5/Factory | Evolved 2 slots: Utility x1, Weapon x1 8869 | -5/Factory | Crushed by falling debris 9247 | -5/Factory | Spotted B-75 Beast 9250 | -5/Factory | Lost 3 parts (1p2n) 9592 | -5/Factory | Discovered new exit (range 15) 9646 | -5/Factory | System corruption reached 10% 9711 | -5/Factory | Identified exit to Factory 9922 | -5/Factory | Cargo convoy interrupted 9945 | -5/Factory | Found Prototype Processor 9948 | -5/Factory | Found Prototype Processor 9951 | -5/Factory | Found Prototype Processor 9958 | -5/Factory | Lost 3 parts (1n1u1w) 10064 | -5/Factory | Lost 3 parts (1n2w) 10470 | -5/Factory | Build established: Scavenger-Gunner 10703 | -5/Factory | First assault squad dispatched 11022 | -5/Factory | Core integrity fell below 50% 11117 | -5/Factory | Lost 5 parts (1p2n2w) 11507 | -5/Factory | Core integrity fell below 20% 11513 | -5/Factory | Released all parts (4) 11515 | -5/Factory | Destroyed by G-50 Soldier with Heavy Laser Last Messages --------------- 11468_ M-28 Smith repairs G-50 Soldier. 11471_ Acquired Linear Gravjet. 11476_ U-05 Engineer builds a Door. 11477_ System corrupted: Component data lost. 11485_ Carbon-fiber Leg destroyed. 11488_ M-28 Smith repairs L-41 Fighter. 11492_ 8EVPK/RY>MC:XTVJ#RNF8 7 WPOBQLFNHM 11506_ Flexi-carbon Leg destroyed. 11510_ System corrupted: Energy discharge (-37). 11512_ Critical hit (Burn: +37). 11513_ Exp. Heat Sink destroyed. 11513_ Released Mic. Fission Core. 11513_ Released Lrg. Storage Unit. 11513_ Released Adv. Signal Interpreter. 11513_ Released Axe. 11514_ Critical hit (Burn: +37). 11515_ C-30 ARC bursts open, deploying its payload. 11515_ G-67 Veteran unfolds itself. 11515_ G-50 Soldier unfolds itself. 11515_ I-47 Archangel unfolds itself. Map ----- +----------------------------------------------------+ | ??????????# #= # #?##+####### | | ??????????# # # ### ###### | | ??????????# / / | | ??????????# # "" # ### ###### | | ??????????# # ""# #?########## | | ??????????# # !! S"## !##?# # | | ??????????# # ! ## #??# # | | ??????????# ############ %#??# # | | ??????????# #??????????# #??# # | | ??????????# #??????????# #??? """" / | | ??????????# #??????????# #??# """" # | | ??????????# #??????????# #??# """" # | | ??????????# ???????????#% #??# """" # | | ??????????# ???????????# #??# # | | ??????????# ??????????# #??########"# | | ??????????# ##+###???? %% ?????????### | | ??????????# % ???? ????######## | | ???????????? ??? % %% % | | ???????????? g %% % ?? #???######## | | ???????????? %g % % %% ??# #??????????# | | ???????????? ggi %%% % ??#######???????####/#+## | | ???????????## % ????????????????# | | ???????????" ############????# | | ??????????# ![g g ###### | | ???????????G !l*!!ggg m + """ | | ???????????" @ =g!g kg ###### """ | | ???????????" ########/###????# * """ | | ????????????# ????????????????# | | ????????????# ?????????????????# """ | | ????????????# ?????????????????# """ | | ????????????+ ??????????????????# """ | | ????????????# ??????????????????# | | ????????????# ???????????????????# | | ????????????? ???????????????????######### | | ????????????? ##????????????????????????????? | | ?????????????? ??????????????????????????????? | | ?????????????? ???????????????????????????????? | | ???????????????? ????????????????????????????????? | | ?????????????????????????????????????????????????? | | ?????????????????????????????????????????????????? | | ?????????????????????????????????????????????????? | | ?????????????????????????????????????????????????? | | ?????????????????????????????????????????????????? | | ?????????????????????????????????????????????????? | | ?????????????????????????????????????????????????? | | ?????????????????????????????????????????????????? | | ?????????????????????????????????????????????????? | | ?????????????????????????????????????????????????? | | ?????????????????????????????????????????????????? | | ?????????????????????????????????????????????????? | +----------------------------------------------------+ Best States ------------- Heat Dissipation 85 Energy Generation 38 Energy Capacity 480 Matter Stores 300 Matter Capacity 300 Sight Range 16 Robot Scan Range 16 Terrain Scan Range 20 Terrain Scan Density 10 Cloak Strength 2 Additional Mass Support 9 Armor Coverage 600 Resistance: KI 25 Resistance: TH 30 Evasion (%) 55 Targeting Accuracy 5 Melee Accuracy 8 Target Analysis 6 Recoil Reduction 3 Item Schematics ----------------- Lgt. Armor Plating | -8/Materials | Scanalyzed Robot Schematics ------------------ None Fabricated ------------ Nothing Alien Tech Used ----------------- None Achievements -------------- Fist Fight Project G-00 Revising The Future Challenges ------------ None Game ------ Seed HoverChipBiocell Manual? 0 Play Time 02:57:32 Cumulative 42.8 hours Start 2023.07.30 @ 20:55:53 End 2023.07.31 @ 13:17:11 Sessions 5 Manual Loads 0 Difficulty Rogue Special Mode None Game No. 24 Rogue 24 Adventurer 0 Explorer 0 Win Type - Total 1 Types 1/0/0/0/0/0/0/0/0 Lore% 22 Gallery% 42 Achievement% 29 Wizard Run 0 Options --------- ASCII 0 Keyboard 1 Movement Numpad Keybinds 0 Fullscreen 1 Font 24/Smallcaps Map View 76x50 Tactical HUD 1 Map Filters NONE Filters NONE Steam 1 RUN: 5c60dcc1-922a-4784-92af-ce24c2d1c408